bitfinex-derivatives/quotes_SOLF0:USTF0_20241017
["timestamp","ask_amount","ask_price","bid_price","bid_amount"]
[1729160364685,11.4307,152.69,152.63,10.08]
[1729160364888,128.13565997,152.71,152.66,10.08]
[1729160364889,138.21565997,152.71,152.66,10.08]
[1729160365194,70.82,152.79,152.69,10.08]
[1729160365493,13.354,152.76,152.73,3.2745]
[1729160365879,13.3539,152.76,152.73,3.2745]
[1729160366387,4.7,152.76,152.74,3.2742]
[1729160366792,4.7,152.76,152.75,3.2741]
[1729160368886,70.8,152.87,152.75,10.08]
[1729160369091,70.8,152.87,152.78,10.08]
[1729160369092,13.3523,152.84,152.78,10.08]
[1729160369286,10.08,152.82,152.77,10.08]
[1729160369485,10.08,152.81,152.74,8.9409]
[1729160369696,13.353,152.81,152.76,10.08]
[1729160369993,10.08,152.81,152.76,10.08]
[1729160370188,10.08,152.81,152.78,3.2734]
[1729160371688,18.0527,152.82,152.78,3.2734]
[1729160371894,14.78,152.82,152.79,3.2732]
[1729160372589,14.78,152.82,152.77,10.08]
[1729160372889,4.7,152.82,152.8,3.2729]
[1729160373094,14.78,152.82,152.8,3.2729]
[1729160374892,10.08,152.84,152.83,3.2722]
[1729160375189,14.78,152.84,152.79,10.08]
[1729160375797,10.08,152.83,152.8,3.2729]
[1729160376097,10.08,152.83,152.78,10.08]
[1729160377200,10.08,152.83,152.8,3.273]
[1729160377395,10.08,152.83,152.74,8.9409]
[1729160377595,4.7,152.84,152.77,10.08]
[1729160377596,10.08,152.81,152.77,10.08]
[1729160378197,13.3528,152.81,152.78,3.2734]
[1729160379104,10.08,152.8,152.78,3.2734]
[1729160379299,13.3532,152.8,152.74,8.9409]
[1729160379499,13.3532,152.8,152.74,19.0209]
[1729160379897,10.08,152.8,152.74,19.0209]
[1729160380195,10.08,152.8,152.77,3.2736]
[1729160381904,13.353,152.8,152.77,3.2736]
[1729160382205,10.08,152.8,152.77,3.2736]
[1729160382702,10.08,152.81,152.76,10.08]
[1729160382901,10.08,152.81,152.79,3.2732]
[1729160383203,10.08,152.81,152.76,10.08]
[1729160383404,10.08,152.81,152.78,3.2734]
[1729160384804,10.08,152.81,152.8,3.273]
[1729160385008,13.3525,152.83,152.8,3.273]
[1729160385200,13.3525,152.83,152.78,10.08]
[1729160385502,10.08,152.82,152.79,3.2731]
[1729160386502,10.08,152.82,152.8,3.273]
[1729160386703,10.08,152.82,152.77,10.08]
[1729160386903,13.3526,152.82,152.77,10.08]
[1729160387605,10.08,152.82,152.77,10.08]
[1729160388106,10.08,152.82,152.75,4.7]
[1729160388403,13.3526,152.82,152.79,3.2731]
[1729160392706,13.3526,152.82,152.77,10.08]
[1729160393414,13.3526,152.82,152.79,3.2731]
[1729160394112,13.3526,152.82,152.8,3.273]
[1729160394613,1.4586,152.86,152.77,10.08]
[1729160394815,1.4586,152.86,152.8,3.2728]
[1729160394816,13.3524,152.83,152.8,3.2728]
[1729160395119,13.3524,152.83,152.81,3.21111672]
[1729160395508,13.3524,152.83,152.81,3.2727]
[1729160395707,13.3524,152.83,152.81,6.57581548]
[1729160396015,13.3524,152.83,152.81,3.2727]
[1729160396414,13.3524,152.83,152.81,6.47399479]
[1729160397412,73.6294,152.87,152.84,3.272]
[1729160397413,2.8294,152.87,152.84,3.272]
[1729160397618,14.74,152.87,152.84,3.272]
[1729160398114,14.74,152.87,152.83,3.28216202]
[1729160398309,3.2719,152.85,152.83,6.55446202]
[1729160398510,3.2719,152.85,152.83,3.2723]
[1729160399112,3.2719,152.85,152.83,6.62812651]
[1729160400613,3.2719,152.85,152.8,10.08]
[1729160401215,10.08,152.86,152.83,3.2723]
[1729160401416,13.3518,152.86,152.83,3.24583535]
[1729160401616,13.3518,152.86,152.8,10.08]
[1729160401821,10.08,152.86,152.83,3.2723]
[1729160402016,3.272,152.85,152.83,6.59473902]
[1729160402625,13.352,152.85,152.83,6.59473902]
[1729160402925,3.2724,152.83,152.74,10.7894]
[1729160403121,10.08,152.81,152.74,4.2409]
[1729160403320,10.08,152.8,152.76,3.2738]
[1729160403523,10.08,152.8,152.75,10.08]
[1729160403524,3.2733,152.79,152.75,10.08]
[1729160403723,10.08,152.78,152.74,4.2409]
[1729160403922,10.08,152.78,152.77,3.2737]
[1729160404320,10.08,152.78,152.74,4.2409]
[1729160404321,10.08,152.78,152.74,2.8122]
[1729160404527,10.08,152.78,152.75,3.274]
[1729160404725,13.3536,152.78,152.75,3.274]
[1729160405020,10.08,152.77,152.75,3.2741]
[1729160405323,13.3529,152.81,152.76,10.08]
[1729160405726,10.08,152.79,152.75,10.08]
[1729160405924,10.08,152.79,152.73,4.71822693]
[1729160406127,10.08,152.76,152.73,6.62642693]
[1729160406930,10.08,152.76,152.73,3.35202693]
[1729160407130,4.66,152.79,152.74,3.2742]
[1729160407131,10.08,152.77,152.74,3.2742]
[1729160407430,4.66,152.79,152.73,10.08]
[1729160407630,10.08,152.78,152.73,10.08]
[1729160408533,10.08,152.78,152.75,3.2739]
[1729160408828,10.08,152.78,152.74,10.08]
[1729160409027,10.08,152.78,152.76,3.2737]
[1729160411329,4.66,152.79,152.77,3.2735]
[1729160411534,10.08,152.82,152.77,10.08]
[1729160411731,14.74,152.82,152.77,10.08]
[1729160412036,4.66,152.82,152.79,10.08]
[1729160412336,4.66,152.82,152.79,13.32426047]
[1729160413419,4.66,152.82,152.8,3.2729]
[1729160414431,4.1292,152.89,152.81,10.08]
[1729160414631,10.08,152.86,152.81,10.08]
[1729160414932,3.2721,152.85,152.82,3.2725]
[1729160415132,3.2721,152.85,152.82,6.50576404]
[1729160415933,3.2722,152.84,152.82,6.50576404]
[1729160417036,3.2729,152.81,152.79,6.56878739]
[1729160417230,10.08,152.8,152.76,11.5208]
[1729160417627,10.08,152.8,152.78,3.2733]
[1729160417828,10.08,152.81,152.79,3.20816346]
[1729160418029,10.08,152.81,152.77,10.08]
[1729160418224,10.08,152.81,152.79,3.2731]
[1729160418426,10.08,152.81,152.79,6.46620166]
[1729160419038,3.2727,152.82,152.79,3.19310166]
[1729160419227,3.2727,152.82,152.8,3.273]
[1729160419938,10.08,152.83,152.79,3.35539138]
[1729160420136,13.3525,152.83,152.8,3.2729]
[1729160422240,3.2727,152.82,152.79,6.62849138]
[1729160422452,4.1292,152.89,152.75,4.66]
[1729160422453,10.08,152.8,152.75,10.08]
[1729160422739,4.7,152.81,152.72,4.174]
[1729160422740,10.08,152.77,152.73,10.08]
[1729160423445,10.08,152.77,152.76,3.2739]
[1729160423746,13.3533,152.79,152.76,3.2739]
[1729160424543,10.08,152.79,152.75,10.08]
[1729160424744,10.08,152.8,152.78,3.2733]
[1729160426534,13.353,152.8,152.78,3.2733]
[1729160426733,4.7,152.81,152.76,10.08]
[1729160426940,10.08,152.8,152.79,3.2732]
[1729160431443,13.3532,152.8,152.75,10.08]
[1729160431643,10.08,152.79,152.75,10.08]
[1729160432555,10.08,152.79,152.78,3.2734]
[1729160433647,18.0529,152.81,152.78,3.2734]
[1729160435249,7.9729,152.81,152.78,3.2734]
[1729160435452,4.7,152.81,152.8,3.273]
[1729160438850,10.08,152.87,152.83,3.2722]
[1729160439050,14.78,152.87,152.82,10.08]
[1729160439250,3.2718,152.86,152.82,10.08]
[1729160439762,3.2718,152.86,152.83,3.2723]
[1729160440350,10.08,152.85,152.83,3.2723]
[1729160441551,10.08,152.85,152.81,10.08]
[1729160442657,10.08,152.85,152.83,3.2722]
[1729160444858,4.7,152.87,152.82,10.08]
[1729160445052,14.78,152.88,152.82,10.08]
[1729160445250,10.08,152.88,152.82,10.08]
[1729160445453,14.78,152.88,152.82,10.08]
[1729160445656,3.2715,152.87,152.85,3.2718]
[1729160446259,18.0514,152.88,152.85,3.2718]
[1729160448863,14.78,152.88,152.87,3.2715]
[1729160449255,14.78,152.88,152.84,10.08]
[1729160449460,14.78,152.88,152.86,3.2716]
[1729160449656,10.08,152.88,152.86,3.2716]
[1729160450069,13.3514,152.88,152.86,3.2716]
[1729160450661,3.2714,152.88,152.86,3.2716]
[1729160452365,3.2714,152.88,152.86,3.2717]
[1729160453962,127.94870496,152.94,152.85,10.08]
[1729160454157,10.08,152.9,152.86,10.08]
[1729160454360,10.08,152.9,152.87,3.31480304]
[1729160454966,3.2711,152.89,152.87,6.58620304]
[1729160455869,13.351,152.9,152.87,6.58620304]
[1729160460973,4.66,152.91,152.89,3.271]
[1729160461379,4.66,152.91,152.89,3.28677479]
[1729160461579,3.2709,152.9,152.89,3.28677479]
[1729160462088,7.9308,152.91,152.89,3.28677479]
[1729160463882,7.9308,152.91,152.89,6.55787479]
[1729160464286,10.08,152.93,152.9,3.2708]
[1729160464287,3.2703,152.93,152.9,3.2708]
[1729160464485,4.66,152.92,152.9,3.2708]
[1729160465191,138.02870496,152.94,152.9,10.08]
[1729160465192,7.9301,152.94,152.9,10.08]
[1729160466078,14.74,152.94,152.91,3.2705]
[1729160466281,3.2706,152.92,152.89,3.28677479]
[1729160466486,3.2706,152.92,152.88,10.08]
[1729160466788,3.2706,152.92,152.9,3.2707]
[1729160469990,13.3503,152.93,152.9,3.2707]
[1729160472092,13.3503,152.93,152.89,10.08]
[1729160472297,13.3503,152.93,152.91,3.2707]
[1729160473299,3.2703,152.93,152.91,3.2707]
[1729160474703,3.27,152.94,152.92,3.2703]
[1729160474904,14.74,152.95,152.9,10.08]
[1729160475110,14.74,152.95,152.9,13.3386338]
[1729160475301,10.08,152.95,152.9,13.3386338]
[1729160475607,3.27,152.94,152.92,3.2703]
[1729160476211,4.66,152.95,152.93,3.2701]
[1729160476706,7.9298,152.95,152.93,3.2701]
[1729160477108,3.2698,152.95,152.93,3.2701]
[1729160477309,10.08,152.96,152.92,10.08]
[1729160477507,7.9295,152.97,152.94,3.2698]
[1729160477814,3.2695,152.97,152.94,3.2698]
[1729160478111,3.2695,152.97,152.94,6.46727327]
[1729160479606,10.08,152.95,152.88,4.66]
[1729160479907,10.08,152.93,152.86,7.4145]
[1729160480297,10.08,152.91,152.87,10.08]
[1729160480606,10.08,152.91,152.87,13.32948865]
[1729160481303,10.08,152.93,152.88,10.08]
[1729160481503,3.2706,152.92,152.9,3.2709]
[1729160490008,4.64,152.95,152.91,10.08]
[1729160490206,3.27,152.94,152.92,3.2704]
[1729160495218,14.72,152.95,152.91,10.08]
[1729160495419,17.9899,152.95,152.91,10.08]
[1729160496020,17.9899,152.95,152.93,3.2701]
[1729160496215,4.64,152.95,152.92,10.08]
[1729160496416,4.64,152.95,152.93,10.08]
[1729160496613,4.64,152.95,152.94,3.27]
[1729160500117,14.72,152.95,152.93,3.19571948]
[1729160500323,10.08,152.94,152.86,7.3945]
[1729160500522,10.08,152.91,152.87,10.08]
[1729160500723,10.08,152.91,152.87,13.3909911]
[1729160501522,10.08,152.91,152.9,3.2708]
[1729160501723,10.08,152.91,152.87,3.3109911]
[1729160501923,10.08,152.91,152.89,3.2709]
[1729160502122,10.08,152.91,152.89,3.28187558]
[1729160502429,10.08,152.91,152.86,17.4745]
[1729160503427,10.08,152.91,152.9,3.2709]
[1729160503630,14.72,152.91,152.87,3.25122257]
[1729160503824,10.08,152.88,152.87,3.25122257]
[1729160504021,10.08,152.88,152.87,3.2715]
[1729160507529,10.08,152.88,152.85,3.2718]
[1729160507530,13.3514,152.88,152.85,3.2718]
[1729160507724,10.08,152.86,152.82,10.08]
[1729160508233,10.08,152.88,152.86,3.2716]
[1729160509331,13.3513,152.88,152.86,3.2716]
[1729160509633,10.08,152.88,152.85,3.2718]
[1729160509941,13.3514,152.88,152.85,3.2718]
[1729160510630,13.3514,152.88,152.8,15.4138]
[1729160510835,13.3513,152.88,152.84,3.2721]
[1729160511035,13.3513,152.88,152.83,10.08]
[1729160512525,13.3513,152.88,152.86,3.2717]
[1729160516136,14.7,152.87,152.8,4.2278]
[1729160516335,14.7,152.87,152.8,1.4281]
[1729160516336,10.08,152.84,152.8,1.4281]
[1729160517141,10.08,152.84,152.82,3.2724]
[1729160517741,10.08,152.83,152.81,3.2727]
[1729160518135,10.08,152.83,152.79,13.37372664]
[1729160519942,10.08,152.83,152.8,3.273]
[1729160520247,10.08,152.83,152.79,13.37372664]
[1729160520634,10.08,152.83,152.82,3.2726]
[1729160521245,3.2726,152.82,152.8,3.2729]
[1729160521447,13.3526,152.82,152.8,3.2729]
[1729160521638,10.08,152.82,152.8,3.2729]
[1729160522035,10.08,152.81,152.79,6.56692664]
[1729160522240,10.08,152.81,152.79,3.2732]
[1729160522640,10.08,152.81,152.79,3.2804124]
[1729160522943,10.08,152.81,152.78,3.2733]
[1729160523541,13.3529,152.81,152.79,3.2732]
[1729160524246,3.2729,152.81,152.79,3.2732]
[1729160525642,3.273,152.8,152.76,1.4095]
[1729160525838,10.08,152.78,152.73,10.08]
[1729160526353,17.9734,152.79,152.77,3.2737]
[1729160526642,4.62,152.79,152.77,3.2737]
[1729160527547,14.7,152.79,152.77,3.2737]
[1729160528244,3.2735,152.78,152.73,13.31413062]
[1729160528450,14.7,152.79,152.73,10.08]
[1729160528749,14.7,152.79,152.74,10.08]
[1729160529344,4.2858,152.86,152.76,10.08]
[1729160529657,10.08,152.81,152.79,3.2731]
[1729160529854,14.7,152.81,152.79,3.2731]
[1729160530748,17.9728,152.81,152.79,3.2731]
[1729160530948,17.9728,152.81,152.79,6.56234392]
[1729160531148,17.9728,152.81,152.79,3.2731]
[1729160531749,17.9728,152.81,152.79,6.58756015]
[1729160531952,17.9728,152.81,152.79,3.2731]
[1729160532542,17.9728,152.81,152.79,6.56846201]
[1729160533649,17.9728,152.81,152.79,3.2731]
[1729160534358,4.62,152.81,152.8,3.273]
[1729160535559,4.62,152.81,152.79,6.50340133]
[1729160535745,4.62,152.81,152.79,3.2732]
[1729160536252,4.62,152.81,152.79,6.53090634]
[1729160536453,13.3528,152.82,152.79,6.53090634]
[1729160536653,4.62,152.81,152.79,6.53090634]
[1729160537463,7.8928,152.81,152.79,6.53090634]
[1729160538661,4.2858,152.86,152.79,3.25770634]
[1729160538852,4.2858,152.86,152.77,10.08]
[1729160538853,4.62,152.87,152.81,10.08]
[1729160539058,10.08,152.86,152.81,10.08]
[1729160539261,3.2723,152.84,152.78,1.3362]
[1729160539561,10.08,152.85,152.79,10.08]
[1729160539960,13.3521,152.85,152.82,3.2724]
[1729160540166,10.08,152.83,152.79,10.08]
[1729160540367,10.08,152.82,152.77,16.0846]
[1729160540667,10.08,152.8,152.79,3.2732]
[1729160543561,10.08,152.8,152.77,1.3846]
[1729160543762,10.08,152.8,152.78,3.2734]
[1729160544574,10.08,152.8,152.78,6.58262528]
[1729160545670,10.08,152.8,152.78,3.2734]
[1729160551379,13.353,152.8,152.78,3.2734]
[1729160551579,10.08,152.8,152.78,3.2734]
[1729160556680,4.62,152.83,152.8,3.2729]
[1729160556681,3.2726,152.82,152.8,3.2729]
[1729160556885,10.08,152.81,152.8,3.2729]
[1729160557179,7.8924,152.83,152.81,3.2727]
[1729160557379,10.08,152.82,152.81,3.2727]
[1729160557693,10.08,152.82,152.77,10.08]
[1729160559075,10.08,152.82,152.74,3.31730472]
[1729160559286,10.08,152.79,152.74,10.08]
[1729160559473,10.08,152.79,152.74,13.29983432]
[1729160559977,10.08,152.79,152.78,3.2734]
[1729160562476,10.08,152.79,152.74,3.21983432]
[1729160562678,10.08,152.77,152.73,2.666]
[1729160562988,10.08,152.76,152.74,3.21492857]
[1729160563781,10.08,152.76,152.75,3.2741]
[1729160565687,10.08,152.77,152.75,3.2741]
[1729160570287,10.08,152.77,152.74,3.21492857]
[1729160570488,10.08,152.77,152.76,3.2739]
[1729160573094,10.08,152.77,152.75,6.48693399]
[1729160573596,10.08,152.76,152.75,6.48693399]
[1729160573892,13.3539,152.76,152.74,3.2742]
[1729160574091,10.08,152.75,152.74,6.61846114]
[1729160574293,10.08,152.75,152.74,3.2742]
[1729160574892,10.08,152.75,152.74,6.58211048]
[1729160576192,10.08,152.75,152.74,3.2742]
[1729160576995,10.08,152.75,152.74,6.49074259]
[1729160579204,13.3541,152.75,152.73,3.2745]
[1729160579500,10.08,152.75,152.73,3.30441345]
[1729160579701,10.08,152.75,152.7,10.08]
[1729160580303,10.08,152.75,152.71,3.2748]
[1729160580500,10.08,152.73,152.72,3.34426316]
[1729160580705,10.08,152.73,152.69,11.5065]
[1729160581599,14.68,152.75,152.69,11.5065]
[1729160581805,4.6,152.75,152.71,10.08]
[1729160582009,4.6,152.75,152.71,13.27555645]
[1729160582704,4.6,152.78,152.74,10.08]
[1729160582903,4.6,152.79,152.75,10.08]
[1729160583209,4.6,152.79,152.75,13.42393561]
[1729160583803,4.6,152.79,152.78,3.2734]
[1729160585107,10.08,152.8,152.78,3.2734]
[1729160585308,14.68,152.8,152.78,3.2734]
[1729160585707,10.08,152.8,152.78,3.2734]
[1729160585910,14.68,152.8,152.78,3.2734]
[1729160587603,10.08,152.79,152.78,3.2734]
[1729160588301,10.08,152.79,152.68,4.6]
[1729160588613,10.08,152.74,152.69,11.5065]
[1729160588804,10.08,152.73,152.72,3.2746]
[1729160589010,10.08,152.73,152.72,6.47292156]
[1729160590012,10.08,152.74,152.73,3.2744]
[1729160590610,10.08,152.74,152.72,6.47292156]
[1729160591317,10.08,152.73,152.72,3.2746]
[1729160596308,3.2748,152.72,152.7,3.2752]
[1729160596509,10.08,152.71,152.7,3.2752]
[1729160598919,10.08,152.71,152.69,3.2752]
[1729160599118,14.68,152.71,152.64,99.93173735]
[1729160599326,10.08,152.69,152.64,110.01173735]
[1729160600321,14.68,152.71,152.69,3.2754]
[1729160601421,14.68,152.71,152.65,10.08]
[1729160601422,10.08,152.7,152.65,10.08]
[1729160601620,10.08,152.7,152.68,3.2756]
[1729160605223,10.08,152.69,152.68,3.2756]
[1729160608025,10.08,152.69,152.67,3.2757]
[1729160608227,10.08,152.69,152.64,10.08]
[1729160609423,10.08,152.69,152.68,3.2756]
[1729160615542,10.08,152.7,152.65,10.08]
[1729160615835,10.08,152.7,152.69,3.2752]
[1729160616733,14.68,152.71,152.69,3.2752]
[1729160617327,10.08,152.7,152.69,3.2752]
[1729160624145,13.3553,152.7,152.64,10.08]
[1729160624444,10.08,152.68,152.64,10.08]
[1729160624744,10.08,152.68,152.63,20.67016545]
[1729160625043,10.08,152.68,152.63,17.3616]
[1729160625351,10.08,152.67,152.66,3.2759]
[1729160625548,10.08,152.67,152.66,6.48638211]
[1729160633953,13.3559,152.67,152.64,3.2763]
[1729160634150,10.08,152.65,152.64,3.2763]
[1729160637749,4.6,152.67,152.65,3.2761]
[1729160637944,10.08,152.66,152.65,3.2761]
[1729160640156,10.08,152.67,152.66,3.2759]
[1729160640461,10.08,152.67,152.66,6.62661987]
[1729160644262,3.2751,152.71,152.66,3.35071987]
[1729160644462,10.08,152.68,152.63,10.08]
[1729160644961,7.8552,152.7,152.67,3.2758]
[1729160645263,10.08,152.68,152.67,3.27534178]
[1729160645558,4.58,152.7,152.63,10.08]
[1729160645765,10.08,152.68,152.63,10.08]
[1729160645965,10.08,152.68,152.67,3.2758]
[1729160646163,10.08,152.68,152.67,6.4833015]
[1729160648164,3.2759,152.67,152.64,3.2763]
[1729160648466,10.08,152.65,152.64,3.2763]
[1729160659667,10.08,152.65,152.63,3.2765]
[1729160659867,10.08,152.64,152.63,3.2765]
[1729160678490,10.08,152.65,152.63,3.2765]
[1729160679191,7.8562,152.66,152.63,3.2765]
[1729160679393,10.08,152.65,152.63,3.2765]
[1729160681189,1.3231,152.69,152.6,10.08]
[1729160681397,10.08,152.65,152.6,10.08]
[1729160682392,10.08,152.65,152.64,3.2765]
[1729160689201,10.08,152.65,152.6,10.08]
[1729160689202,4.58,152.68,152.66,3.2759]
[1729160689394,4.58,152.68,152.67,3.21371116]
[1729160689590,14.66,152.68,152.67,3.21371116]
[1729160690003,17.9358,152.68,152.65,3.2762]
[1729160690203,10.08,152.66,152.65,3.2762]
[1729160693206,1.4032,152.72,152.6,10.08]
[1729160693410,4.58,152.71,152.63,10.08]
[1729160693701,14.66,152.71,152.66,10.08]
[1729160694002,10.08,152.69,152.65,10.08]
[1729160695398,10.08,152.69,152.68,3.2755]
[1729160704116,7.835,152.71,152.68,3.2755]
[1729160704321,7.835,152.71,152.64,2.7928]
[1729160704322,4.56,152.71,152.66,10.08]
[1729160704614,10.08,152.69,152.64,2.7928]
[1729160704810,10.08,152.69,152.64,12.8728]
[1729160705401,10.08,152.68,152.66,3.2759]
[1729160705716,10.08,152.67,152.63,3.27196396]
[1729160706013,10.08,152.65,152.64,3.2763]
[1729160706203,14.64,152.67,152.63,10.08]
[1729160706614,4.56,152.67,152.63,10.08]
[1729160707613,4.56,152.67,152.65,3.2761]
[1729160708816,10.08,152.66,152.65,3.2761]
[1729160710515,10.08,152.66,152.61,6.00614838]
[1729160710817,10.08,152.64,152.62,3.2768]
[1729160711624,13.3565,152.64,152.61,6.56414838]
[1729160711810,10.08,152.64,152.61,6.56414838]
[1729160712415,10.08,152.64,152.62,3.2769]
[1729160713317,10.08,152.64,152.61,6.56414838]
[1729160713521,10.08,152.63,152.57,18.6724]
[1729160713822,10.08,152.63,152.57,22.03197356]
[1729160714317,13.3567,152.63,152.6,3.2772]
[1729160714722,10.08,152.61,152.57,7.39197356]
[1729160714917,10.08,152.61,152.59,3.2775]
[1729160715821,10.08,152.62,152.59,3.2775]
[1729160717319,10.08,152.61,152.59,3.2775]
[1729160717519,10.08,152.6,152.57,4.69487356]
[1729160717823,10.08,152.58,152.57,3.35957356]
[1729160718018,10.08,152.58,152.54,4.56]
[1729160718216,10.08,152.58,152.53,12.8082]
[1729160718723,10.08,152.55,152.49,1.4045]
[1729160719021,10.08,152.55,152.5,14.64]
[1729160719524,10.08,152.55,152.54,3.2786]
[1729160721123,10.08,152.56,152.54,3.2786]
[1729160721522,4.56,152.59,152.55,3.2784]
[1729160721727,10.08,152.58,152.55,3.29585279]
[1729160722024,10.08,152.58,152.56,3.278]
[1729160722228,10.08,152.58,152.57,3.22666316]
[1729160725622,3.278,152.57,152.54,3.2785]
[1729160725828,10.08,152.55,152.54,3.2785]
[1729160726928,10.08,152.55,152.54,6.47803806]
[1729160730634,17.9385,152.55,152.51,3.2791]
[1729160730835,10.08,152.52,152.51,6.52028847]
[1729160731337,10.08,152.52,152.51,3.24118847]
[1729160731523,10.08,152.52,152.5,3.2793]
[1729160732034,10.08,152.53,152.5,3.22183907]
[1729160732226,10.08,152.53,152.49,1.4239]
[1729160732533,10.08,152.53,152.49,11.5039]
[1729160732736,10.08,152.53,152.49,14.81549129]
[1729160733232,10.08,152.53,152.52,3.279]
[1729160735430,4.58,152.57,152.54,3.2785]
[1729160735639,10.08,152.55,152.49,19.39549129]
[1729160735929,4.58,152.57,152.49,19.39549129]
[1729160735930,10.08,152.53,152.49,19.39549129]
[1729160736530,10.08,152.53,152.52,3.279]
[1729160737834,10.08,152.53,152.49,9.31549129]
[1729160738038,10.08,152.52,152.51,3.2792]
[1729160740345,10.08,152.52,152.5,3.2793]
[1729160740638,10.08,152.51,152.5,3.2793]
[1729160743747,10.08,152.51,152.49,3.31159129]
[1729160744044,10.08,152.5,152.46,1.4596]
[1729160744443,10.08,152.5,152.46,4.76211003]
[1729160744642,10.08,152.5,152.46,3.30251003]
[1729160744843,13.3595,152.5,152.47,3.28]
[1729160745043,3.2795,152.5,152.47,3.32842365]
[1729160745244,10.08,152.48,152.45,1.3825]
[1729160745447,10.08,152.48,152.47,3.2801]
[1729160745742,10.08,152.48,152.47,3.31672198]
[1729160745948,10.08,152.48,152.45,3.2804]
[1729160746140,10.08,152.48,152.44,1.4145]
[1729160746647,10.08,152.48,152.45,3.2803]
[1729160747244,10.08,152.47,152.44,4.6951]
[1729160747438,10.08,152.47,152.44,1.4145]
[1729160748644,10.08,152.47,152.46,3.2803]
[1729160748849,10.08,152.47,152.46,6.61189388]
[1729160749151,14.66,152.49,152.46,3.33159388]
[1729160749450,14.66,152.49,152.44,1.4145]
[1729160749645,14.66,152.49,152.47,3.28]
[1729160749950,14.66,152.49,152.47,6.55876873]
[1729160750853,14.66,152.49,152.48,3.2799]
[1729160751644,14.66,152.49,152.48,6.51568677]
[1729160759058,4.58,152.51,152.49,3.2796]
[1729160759259,10.08,152.5,152.49,3.2796]
[1729160759459,10.08,152.5,152.49,6.63394127]
[1729160760861,10.08,152.5,152.49,3.35434127]
[1729160761064,10.08,152.5,152.48,3.2798]
[1729160761261,10.08,152.49,152.48,6.50750045]
[1729160763051,10.08,152.49,152.47,3.28]
[1729160763258,10.08,152.49,152.47,6.49185903]
[1729160764665,10.08,152.49,152.47,3.21185903]
[1729160764857,10.08,152.49,152.46,3.2802]
[1729160765063,10.08,152.47,152.46,3.2802]
[1729160765357,10.08,152.47,152.46,3.32229906]
[1729160765557,10.08,152.47,152.44,3.2806]
[1729160765762,10.08,152.45,152.44,3.2806]
[1729160767163,10.08,152.45,152.4,8.7533]
[1729160767356,10.08,152.45,152.4,4.1733]
[1729160767765,3.2803,152.46,152.43,3.2808]
[1729160767958,10.08,152.44,152.43,3.2808]
[1729160771058,4.58,152.47,152.4,14.2533]
[1729160771260,4.58,152.47,152.45,3.2804]